[Event "SS Manhem Chess Week 2022: Goteborg Open"]
[Site "Schackcentrum, Vegagatan 20, Gothenburg, Sweden"]
[Date "2022.08.13"]
[Round "6.18"]
[White "Andreasson, Leo"]
[Black "Westman, Lennart"]
[Result "0-1"]
[TimeControl "15 minutes + 5 seconds per move from move one (Round 1 - 4) / 90 minutes + 30 seconds per move from move one (Round 5 - 8)"]
[WhiteFideId "1768980"]
[BlackFideId "1718690"]
[WhiteElo "1132"]
[BlackElo "1655"]

1. Nf3 {[%clk 01:30:56]} {[%emt 00:00:04]} d5 {[%clk 01:31:20]} {[%emt
00:00:09]} 2. d4 {[%clk 01:31:08]} {[%emt 00:00:18]} Nf6 {[%clk 01:31:41]}
{[%emt 00:00:09]} 3. c4 {[%clk 01:31:31]} {[%emt 00:00:08]} c6 {[%clk
01:31:57]} {[%emt 00:00:15]} 4. e3 {[%clk 01:31:34]} {[%emt 00:00:25]} Qb6
{[%clk 01:30:32]} {[%emt 00:01:55]} 5. Nc3 {[%clk 01:30:32]} {[%emt 00:01:32]}
Bg4 {[%clk 01:30:33]} {[%emt 00:00:28]} 6. h3 {[%clk 01:29:52]} {[%emt
00:01:11]} Bxf3 {[%clk 01:29:59]} {[%emt 00:01:04]} 7. Qxf3 {[%clk 01:29:47]}
{[%emt 00:00:33]} e6 {[%clk 01:30:08]} {[%emt 00:00:23]} 8. c5 {[%clk
01:29:04]} {[%emt 00:01:14]} Qc7 {[%clk 01:30:06]} {[%emt 00:00:31]} 9. Bd3
{[%clk 01:28:51]} {[%emt 00:00:43]} Be7 {[%clk 01:30:01]} {[%emt 00:00:36]} 10.
O-O {[%clk 01:28:39]} {[%emt 00:00:41]} O-O {[%clk 01:28:29]} {[%emt 00:02:02]}
11. Bd2 {[%clk 01:28:45]} {[%emt 00:00:24]} Nbd7 {[%clk 01:28:46]} {[%emt
00:00:14]} 12. Rfe1 {[%clk 01:26:45]} {[%emt 00:02:30]} Rfe8 {[%clk 01:21:39]}
{[%emt 00:07:37]} 13. Rad1 {[%clk 01:23:36]} {[%emt 00:03:37]} b6 {[%clk
01:20:31]} {[%emt 00:01:40]} 14. b4 {[%clk 01:22:09]} {[%emt 00:01:57]} bxc5
{[%clk 01:17:06]} {[%emt 00:03:55]} 15. bxc5 {[%clk 01:20:47]} {[%emt
00:01:53]} e5 {[%clk 01:16:39]} {[%emt 00:00:57]} 16. Bf1 {[%clk 01:19:21]}
{[%emt 00:01:56]} e4 {[%clk 01:16:18]} {[%emt 00:00:50]} 17. Qe2 {[%clk
01:18:44]} {[%emt 00:01:07]} Nf8 {[%clk 01:13:21]} {[%emt 00:03:28]} 18. Rb1
{[%clk 01:12:07]} {[%emt 00:07:06]} Rab8 {[%clk 01:13:49]} {[%emt 00:00:02]} 19.
Qa6 {[%clk 01:12:04]} {[%emt 00:00:33]} N6d7 {[%clk 01:12:11]} {[%emt
00:02:08]} 20. Rec1 {[%clk 01:10:16]} {[%emt 00:02:18]} f5 {[%clk 01:11:09]}
{[%emt 00:01:32]} 21. Re1 {[%clk 01:06:38]} {[%emt 00:04:08]} Bg5 {[%clk
01:10:22]} {[%emt 00:01:16]} 22. a3 {[%clk 01:01:44]} {[%emt 00:05:25]} Ne6
{[%clk 01:10:12]} {[%emt 00:00:40]} 23. Ne2 {[%clk 01:01:17]} {[%emt 00:00:57]}
Nf6 {[%clk 01:10:01]} {[%emt 00:00:41]} 24. Ba5 {[%clk 00:56:53]} {[%emt
00:04:54]} Qd7 {[%clk 01:10:29]} {[%emt 00:00:02]} 25. Bd2 {[%clk 00:56:30]}
{[%emt 00:00:53]} Bh6 {[%clk 01:08:45]} {[%emt 00:02:14]} 26. Qa4 {[%clk
00:49:56]} {[%emt 00:07:05]} g5 {[%clk 01:08:57]} {[%emt 00:00:17]} 27. Ng3
{[%clk 00:48:51]} {[%emt 00:01:35]} Ng7 {[%clk 01:07:13]} {[%emt 00:02:14]} 28.
Rxb8 {[%clk 00:46:18]} {[%emt 00:03:03]} Rxb8 {[%clk 01:07:42]} {[%emt
00:00:01]} 29. Qd1 {[%clk 00:46:07]} {[%emt 00:00:40]} f4 {[%clk 01:07:33]}
{[%emt 00:00:39]} 30. Nh1 {[%clk 00:45:58]} {[%emt 00:00:39]} Nf5 {[%clk
01:04:48]} {[%emt 00:03:15]} 31. exf4 {[%clk 00:44:39]} {[%emt 00:01:49]} gxf4
{[%clk 01:05:13]} {[%emt 00:00:02]} 32. Bc3 {[%clk 00:35:33]} {[%emt 00:09:39]}
Qg7 {[%clk 01:03:25]} {[%emt 00:02:18]} 33. Bd2 {[%clk 00:29:59]} {[%emt
00:06:04]} Nxd4 {[%clk 01:00:25]} {[%emt 00:03:30]} 34. Be2 {[%clk 00:26:55]}
{[%emt 00:03:34]} Nxe2+ {[%clk 00:59:56]} {[%emt 00:00:59]} 0-1

[Event "SS Manhem Chess Week 2022: Goteborg Open"]
[Site "Schackcentrum, Vegagatan 20, Gothenburg, Sweden"]
[Date "2022.08.14"]
[Round "7.1"]
[White "Jacobsen, Mikkel Manosri"]
[Black "Kasib, Laith"]
[Result "1-0"]
[TimeControl "15 minutes + 5 seconds per move from move one (Round 1 - 4) / 90 minutes + 30 seconds per move from move one (Round 5 - 8)"]
[WhiteTitle "FM"]
[BlackTitle "FM"]
[WhiteFideId "1444514"]
[BlackFideId "4801059"]
[WhiteElo "2320"]
[BlackElo "2051"]

1. d4 {[%clk 01:30:57]} {[%emt 00:00:02]} Nf6 {[%clk 01:17:39]} {[%emt
00:13:21]} 2. c4 {[%clk 01:31:15]} {[%emt 00:00:13]} g6 {[%clk 01:18:04]}
{[%emt 00:00:05]} 3. Nf3 {[%clk 01:31:39]} {[%emt 00:00:06]} Bg7 {[%clk
01:18:29]} {[%emt 00:00:05]} 4. e3 {[%clk 01:32:05]} {[%emt 00:00:04]} O-O
{[%clk 01:18:50]} {[%emt 00:00:07]} 5. Be2 {[%clk 01:32:33]} {[%emt 00:00:05]}
d6 {[%clk 01:18:44]} {[%emt 00:00:35]} 6. O-O {[%clk 01:32:56]} {[%emt
00:00:07]} Bf5 {[%clk 01:18:45]} {[%emt 00:00:29]} 7. Qb3 {[%clk 01:31:04]}
{[%emt 00:02:22]} Qc8 {[%clk 01:17:16]} {[%emt 00:01:58]} 8. Nc3 {[%clk
01:31:15]} {[%emt 00:00:18]} Ne4 {[%clk 01:16:28]} {[%emt 00:01:18]} 9. Nd5
{[%clk 01:27:42]} {[%emt 00:04:04]} Nc6 {[%clk 01:13:00]} {[%emt 00:03:58]} 10.
Bd3 {[%clk 01:14:10]} {[%emt 00:14:02]} e6 {[%clk 01:09:21]} {[%emt 00:04:09]}
11. Nb4 {[%clk 01:14:22]} {[%emt 00:00:18]} Nxb4 {[%clk 01:01:04]} {[%emt
00:08:47]} 12. Qxb4 {[%clk 01:14:49]} {[%emt 00:00:03]} Ng3 {[%clk 00:56:57]}
{[%emt 00:04:37]} 13. Rd1 {[%clk 01:13:07]} {[%emt 00:02:12]} Bxd3 {[%clk
00:54:59]} {[%emt 00:02:28]} 14. Rxd3 {[%clk 01:13:34]} {[%emt 00:00:03]} c5
{[%clk 00:54:31]} {[%emt 00:00:58]} 15. Qb5 {[%clk 01:05:17]} {[%emt 00:08:48]}
Ne4 {[%clk 00:52:34]} {[%emt 00:02:27]} 16. Nd2 {[%clk 00:59:30]} {[%emt
00:06:17]} Nxd2 {[%clk 00:46:10]} {[%emt 00:06:54]} 17. Bxd2 {[%clk 00:59:39]}
{[%emt 00:00:21]} cxd4 {[%clk 00:37:50]} {[%emt 00:08:50]} 18. exd4 {[%clk
00:59:52]} {[%emt 00:00:18]} e5 {[%clk 00:36:29]} {[%emt 00:01:51]} 19. dxe5
{[%clk 00:58:33]} {[%emt 00:01:49]} dxe5 {[%clk 00:36:52]} {[%emt 00:00:06]} 20.
Be3 {[%clk 00:56:51]} {[%emt 00:02:12]} a6 {[%clk 00:33:44]} {[%emt 00:03:39]}
21. Qb4 {[%clk 00:55:18]} {[%emt 00:02:02]} Rd8 {[%clk 00:27:37]} {[%emt
00:06:38]} 22. Rxd8+ {[%clk 00:52:38]} {[%emt 00:03:09]} Qxd8 {[%clk 00:25:53]}
{[%emt 00:02:14]} 23. Qxb7 {[%clk 00:52:31]} {[%emt 00:00:37]} Rb8 {[%clk
00:25:57]} {[%emt 00:00:25]} 24. Qxa6 {[%clk 00:52:53]} {[%emt 00:00:08]} Rxb2
{[%clk 00:26:10]} {[%emt 00:00:18]} 25. c5 {[%clk 00:52:53]} {[%emt 00:00:30]}
f5 {[%clk 00:22:10]} {[%emt 00:04:29]} 26. Qe6+ {[%clk 00:45:42]} {[%emt
00:07:41]} Kh8 {[%clk 00:20:59]} {[%emt 00:01:41]} 27. c6 {[%clk 00:45:36]}
{[%emt 00:00:37]} h6 {[%clk 00:12:57]} {[%emt 00:08:32]} 28. g3 {[%clk
00:30:31]} {[%emt 00:15:34]} f4 {[%clk 00:04:33]} {[%emt 00:08:55]} 29. Qd7
{[%emt 00:08:25]} Qb8 {[%clk 00:02:27]} 30. c7 {[%clk 00:24:33]} {[%emt
00:01:08]} Rb1+ {[%clk 00:02:35]} {[%emt 00:00:22]} 31. Bc1 {[%clk 00:21:22]}
{[%emt 00:03:41]} Qb4 {[%clk 00:00:50]} {[%emt 00:02:16]} 32. c8=Q+ {[%clk
00:21:40]} {[%emt 00:00:12]} Kh7 {[%clk 00:01:14]} {[%emt 00:00:05]} 33. Qd5
{[%clk 00:19:15]} {[%emt 00:02:54]} Qe1+ {[%clk 00:01:27]} {[%emt 00:00:18]} 34.
Kg2 {[%clk 00:19:43]} {[%emt 00:00:02]} f3+ {[%clk 00:01:47]} {[%emt 00:00:10]}
35. Qxf3 {[%clk 00:20:07]} {[%emt 00:00:06]} Rxa1 {[%clk 00:01:56]} {[%emt
00:00:22]} 36. Qd5 {[%clk 00:20:30]} {[%emt 00:00:07]} 1-0

[Event "SS Manhem Chess Week 2022: Goteborg Open"]
[Site "Schackcentrum, Vegagatan 20, Gothenburg, Sweden"]
[Date "2022.08.14"]
[Round "7.2"]
[White "Nygren, Kim"]
[Black "Heimisson, Hilmir Freyr"]
[Result "1-0"]
[TimeControl "15 minutes + 5 seconds per move from move one (Round 1 - 4) / 90 minutes + 30 seconds per move from move one (Round 5 - 8)"]
[WhiteTitle "CM"]
[BlackTitle "IM"]
[WhiteFideId "1706136"]
[BlackFideId "2309998"]
[WhiteElo "2229"]
[BlackElo "2323"]

1. e4 {[%clk 01:30:56]} {[%emt 00:00:03]} c5 {[%clk 01:30:53]} {[%emt
00:00:07]} 2. Nf3 {[%clk 01:31:16]} {[%emt 00:00:11]} d6 {[%clk 01:30:30]}
{[%emt 00:00:53]} 3. d4 {[%clk 01:29:27]} {[%emt 00:02:19]} cxd4 {[%clk
01:30:51]} {[%emt 00:00:09]} 4. Nxd4 {[%clk 01:29:53]} {[%emt 00:00:04]} Nf6
{[%clk 01:31:09]} {[%emt 00:00:11]} 5. Nc3 {[%clk 01:30:07]} {[%emt 00:00:16]}
Nc6 {[%clk 01:31:27]} {[%emt 00:00:11]} 6. Bc4 {[%clk 01:28:17]} {[%emt
00:02:21]} Qb6 {[%clk 01:31:46]} {[%emt 00:00:11]} 7. Ndb5 {[%clk 01:27:40]}
{[%emt 00:01:08]} a6 {[%clk 01:16:04]} {[%emt 00:16:12]} 8. Be3 {[%clk
01:27:55]} {[%emt 00:00:15]} Qa5 {[%clk 01:14:32]} {[%emt 00:02:02]} 9. Nd4
{[%clk 01:28:10]} {[%emt 00:00:14]} Ng4 {[%clk 01:01:27]} {[%emt 00:13:34]} 10.
Nxc6 {[%clk 01:06:10]} {[%emt 00:22:31]} bxc6 {[%clk 00:58:59]} {[%emt
00:02:58]} 11. Bd2 {[%clk 00:57:19]} {[%emt 00:09:21]} e5 {[%clk 00:35:51]}
{[%emt 00:23:39]} 12. O-O {[%clk 00:40:44]} {[%emt 00:17:05]} Qc7 {[%clk
00:32:17]} {[%emt 00:04:03]} 13. b4 {[%clk 00:32:31]} {[%emt 00:08:43]} Be7
{[%clk 00:29:47]} {[%emt 00:03:00]} 14. a4 {[%clk 00:32:30]} {[%emt 00:00:31]}
O-O {[%clk 00:25:14]} {[%emt 00:05:03]} 15. Qe2 {[%clk 00:30:49]} {[%emt
00:02:11]} Nf6 {[%clk 00:22:06]} {[%emt 00:03:38]} 16. Rfb1 {[%clk 00:23:44]}
{[%emt 00:07:35]} Bb7 {[%clk 00:21:06]} {[%emt 00:01:30]} 17. a5 {[%clk
00:22:49]} {[%emt 00:01:26]} d5 {[%clk 00:16:03]} {[%emt 00:05:34]} 18. Bd3
{[%clk 00:18:57]} {[%emt 00:04:20]} Rfd8 {[%clk 00:11:47]} {[%emt 00:04:46]} 19.
f3 {[%clk 00:16:43]} {[%emt 00:02:43]} dxe4 {[%clk 00:08:00]} {[%emt 00:04:18]}
20. Nxe4 {[%clk 00:08:27]} {[%emt 00:08:46]} Nxe4 {[%clk 00:08:11]} {[%emt
00:00:19]} 21. fxe4 {[%clk 00:04:21]} {[%emt 00:04:36]} c5 {[%clk 00:05:39]}
{[%emt 00:03:02]} 22. bxc5 {[%clk 00:04:25]} {[%emt 00:00:26]} Bxc5+ {[%clk
00:05:42]} {[%emt 00:00:26]} 23. Kh1 {[%clk 00:04:50]} {[%emt 00:00:05]} Rd6
{[%clk 00:04:08]} {[%emt 00:02:04]} 24. Rf1 {[%clk 00:04:25]} {[%emt 00:00:54]}
Bc8 {[%clk 00:02:46]} {[%emt 00:01:53]} 25. Qh5 {[%clk 00:02:39]} {[%emt
00:02:16]} Be6 {[%clk 00:01:41]} {[%emt 00:01:35]} 26. Rab1 {[%clk 00:02:33]}
{[%emt 00:00:36]} f6 {[%clk 00:01:41]} {[%emt 00:00:30]} 27. Qh4 {[%clk
00:01:52]} {[%emt 00:01:10]} Bf7 {[%clk 00:01:16]} {[%emt 00:00:56]} 28. Qg3
{[%clk 00:01:42]} {[%emt 00:00:40]} Rb8 {[%clk 00:01:19]} {[%emt 00:00:28]} 29.
Rxb8+ {[%clk 00:01:08]} {[%emt 00:01:04]} Qxb8 {[%clk 00:01:48]} 30. h4 {[%clk
00:01:12]} {[%emt 00:00:25]} Kh8 {[%clk 00:01:14]} {[%emt 00:01:04]} 31. Qg4
{[%clk 00:01:01]} {[%emt 00:00:40]} Be6 {[%clk 00:01:04]} {[%emt 00:00:41]} 32.
Qe2 {[%clk 00:01:09]} {[%emt 00:00:21]} Qc8 {[%clk 00:01:09]} {[%emt 00:00:27]}
33. Rb1 {[%clk 00:01:16]} {[%emt 00:00:22]} h6 {[%clk 00:01:24]} {[%emt
00:00:15]} 34. Be3 {[%clk 00:00:41]} {[%emt 00:01:05]} Bg4 {[%clk 00:00:53]}
{[%emt 00:01:02]} 35. Qd2 {[%clk 00:00:38]} {[%emt 00:00:32]} Bd4 {[%clk
00:00:48]} {[%emt 00:00:36]} 36. Bxd4 {[%clk 00:00:33]} {[%emt 00:00:34]} Rxd4
{[%clk 00:00:56]} {[%emt 00:00:22]} 37. Rb6 {[%clk 00:00:38]} {[%emt 00:00:25]}
Qd8 {[%clk 00:00:37]} {[%emt 00:00:49]} 38. Qf2 {[%clk 00:00:36]} {[%emt
00:00:30]} f5 {[%clk 00:00:47]} {[%emt 00:00:21]} 39. exf5 {[%clk 00:00:38]}
{[%emt 00:00:28]} Rf4 {[%clk 00:00:49]} {[%emt 00:00:29]} 40. Qg3 {[%clk
00:00:32]} {[%emt 00:00:34]} Bh5 {[%clk 00:00:53]} {[%emt 00:00:27]} 41. f6
{[%clk 00:00:33]} {[%emt 00:00:29]} Rxf6 {[%clk 00:00:39]} {[%emt 00:00:44]} 42.
Rb7 {[%clk 00:00:41]} {[%emt 00:00:22]} Bf7 {[%clk 00:00:35]} {[%emt 00:00:34]}
43. Qxe5 {[%clk 00:00:40]} {[%emt 00:00:30]} Re6 {[%clk 00:00:33]} {[%emt
00:00:32]} 44. Rb8 {[%clk 00:00:56]} {[%emt 00:00:14]} Rxe5 {[%clk 00:00:37]}
{[%emt 00:00:26]} 45. Rxd8+ {[%clk 00:01:22]} {[%emt 00:00:04]} Re8 {[%clk
00:00:54]} {[%emt 00:00:13]} 46. Rxe8+ {[%clk 00:01:41]} {[%emt 00:00:11]} Bxe8
{[%clk 00:01:23]} {[%emt 00:00:01]} 47. Bxa6 {[%clk 00:02:04]} {[%emt
00:00:07]} Bc6 {[%clk 00:01:40]} {[%emt 00:00:13]} 48. c4 {[%clk 00:02:19]}
{[%emt 00:00:15]} Kg8 {[%clk 00:02:01]} {[%emt 00:00:09]} 49. Bb5 {[%clk
00:02:37]} {[%emt 00:00:12]} Ba8 {[%clk 00:01:45]} {[%emt 00:00:46]} 50. c5
{[%clk 00:02:33]} {[%emt 00:00:33]} Kf7 {[%clk 00:02:01]} {[%emt 00:00:14]} 51.
c6 {[%clk 00:02:18]} {[%emt 00:00:45]} Ke7 {[%clk 00:02:24]} {[%emt 00:00:07]}
52. c7 {[%clk 00:02:28]} {[%emt 00:00:20]} Bb7 {[%clk 00:02:43]} {[%emt
00:00:11]} 53. a6 {[%clk 00:02:34]} {[%emt 00:00:24]} Kd6 {[%clk 00:03:07]}
{[%emt 00:00:06]} 54. axb7 {[%clk 00:02:47]} {[%emt 00:00:18]} Kxc7 {[%clk
00:03:35]} {[%emt 00:00:02]} 55. Bc6 {[%clk 00:03:06]} {[%emt 00:00:10]} 1-0

[Event "SS Manhem Chess Week 2022: Goteborg Open"]
[Site "Schackcentrum, Vegagatan 20, Gothenburg, Sweden"]
[Date "2022.08.14"]
[Round "7.3"]
[White "Rasti, Arvin"]
[Black "Pettersson, Anders"]
[Result "1-0"]
[TimeControl "15 minutes + 5 seconds per move from move one (Round 1 - 4) / 90 minutes + 30 seconds per move from move one (Round 5 - 8)"]
[WhiteFideId "1741160"]
[BlackFideId "1715143"]
[WhiteElo "2156"]
[BlackElo "2042"]

1. d4 {[%clk 01:30:55]} {[%emt 00:00:04]} d5 {[%clk 01:28:59]} {[%emt
00:02:01]} 2. Nf3 {[%clk 01:30:37]} {[%emt 00:00:48]} e6 {[%clk 01:29:10]}
{[%emt 00:00:20]} 3. g3 {[%clk 01:30:29]} {[%emt 00:00:37]} b6 {[%clk
01:27:45]} {[%emt 00:01:55]} 4. c4 {[%clk 01:25:17]} {[%emt 00:05:42]} Bb7
{[%clk 01:26:46]} {[%emt 00:01:29]} 5. Bg2 {[%clk 01:22:31]} {[%emt 00:03:16]}
dxc4 {[%clk 01:26:52]} {[%emt 00:00:25]} 6. Qa4+ {[%clk 01:21:52]} {[%emt
00:01:08]} Nd7 {[%clk 01:25:37]} {[%emt 00:01:45]} 7. Qxc4 {[%clk 01:21:01]}
{[%emt 00:01:21]} Ngf6 {[%clk 01:22:14]} {[%emt 00:03:53]} 8. O-O {[%clk
01:21:01]} {[%emt 00:00:30]} Be7 {[%clk 01:22:12]} {[%emt 00:00:32]} 9. Nc3
{[%clk 01:15:29]} {[%emt 00:06:02]} O-O {[%clk 01:20:13]} {[%emt 00:02:28]} 10.
Bf4 {[%clk 01:08:15]} {[%emt 00:07:44]} Bd6 {[%clk 01:09:45]} {[%emt 00:10:58]}
11. Bxd6 {[%clk 01:07:19]} {[%emt 00:01:26]} cxd6 {[%clk 01:10:13]} {[%emt
00:00:01]} 12. Rac1 {[%clk 01:06:50]} {[%emt 00:01:00]} Ne4 {[%clk 01:02:37]}
{[%emt 00:08:05]} 13. Nxe4 {[%clk 00:52:27]} {[%emt 00:14:53]} Bxe4 {[%clk
01:00:43]} {[%emt 00:02:24]} 14. Qc7 {[%clk 00:51:37]} {[%emt 00:01:21]} Nf6
{[%clk 01:00:48]} {[%emt 00:00:24]} 15. Nd2 {[%clk 00:48:11]} {[%emt 00:03:56]}
Bxg2 {[%clk 00:58:21]} {[%emt 00:02:57]} 16. Kxg2 {[%clk 00:47:17]} {[%emt
00:01:25]} Rc8 {[%clk 00:57:48]} {[%emt 00:01:01]} 17. Qxa7 {[%clk 00:39:09]}
{[%emt 00:08:39]} Ra8 {[%clk 00:56:41]} {[%emt 00:01:37]} 18. Qc7 {[%clk
00:35:38]} {[%emt 00:04:01]} Rxa2 {[%clk 00:56:47]} {[%emt 00:00:24]} 19. Qc2
{[%clk 00:32:49]} {[%emt 00:03:19]} Qa8+ {[%clk 00:43:12]} {[%emt 00:14:04]} 20.
Kg1 {[%clk 00:30:56]} {[%emt 00:02:24]} Qd5 {[%clk 00:42:42]} {[%emt 00:01:00]}
21. e3 {[%clk 00:28:06]} {[%emt 00:03:21]} Qb5 {[%clk 00:41:14]} {[%emt
00:01:57]} 22. Nc4 {[%clk 00:26:14]} {[%emt 00:02:22]} d5 {[%clk 00:37:33]}
{[%emt 00:04:11]} 23. Qb1 {[%clk 00:26:40]} {[%emt 00:00:04]} Rfa8 {[%clk
00:31:49]} {[%emt 00:06:13]} 24. Nxb6 {[%clk 00:25:10]} {[%emt 00:02:01]} Rxb2
{[%clk 00:29:52]} {[%emt 00:02:28]} 25. Nxa8 {[%clk 00:24:59]} {[%emt
00:00:40]} Rxb1 {[%clk 00:29:16]} {[%emt 00:01:05]} 26. Rxb1 {[%clk 00:25:19]}
{[%emt 00:00:10]} Qe8 {[%clk 00:28:41]} {[%emt 00:01:05]} 27. Nc7 {[%clk
00:25:15]} {[%emt 00:00:35]} Qd8 {[%clk 00:28:22]} {[%emt 00:00:49]} 28. Ra1
{[%clk 00:25:09]} {[%emt 00:00:37]} 1-0

[Event "SS Manhem Chess Week 2022: Goteborg Open"]
[Site "Schackcentrum, Vegagatan 20, Gothenburg, Sweden"]
[Date "2022.08.14"]
[Round "7.5"]
[White "Eldh, Hjalmar"]
[Black "Wahlstrom, Lennart"]
[Result "0-1"]
[TimeControl "15 minutes + 5 seconds per move from move one (Round 1 - 4) / 90 minutes + 30 seconds per move from move one (Round 5 - 8)"]
[WhiteFideId "1767968"]
[BlackFideId "1706829"]
[WhiteElo "1711"]
[BlackElo "2115"]

1. e4 {[%clk 01:30:57]} {[%emt 00:00:02]} e5 {[%clk 01:30:52]} {[%emt
00:00:09]} 2. Nf3 {[%clk 01:31:20]} {[%emt 00:00:06]} Nc6 {[%clk 01:31:16]}
{[%emt 00:00:06]} 3. Bc4 {[%clk 01:31:40]} {[%emt 00:00:09]} Nf6 {[%clk
01:31:39]} {[%emt 00:00:08]} 4. Ng5 {[%clk 01:31:42]} {[%emt 00:00:29]} d5
{[%clk 01:32:00]} {[%emt 00:00:08]} 5. exd5 {[%clk 01:32:06]} {[%emt 00:00:05]}
Na5 {[%clk 01:32:23]} {[%emt 00:00:07]} 6. Bb5+ {[%clk 01:32:28]} {[%emt
00:00:08]} Bd7 {[%clk 01:32:46]} {[%emt 00:00:07]} 7. Qe2 {[%clk 01:32:20]}
{[%emt 00:00:36]} Be7 {[%clk 01:32:53]} {[%emt 00:00:24]} 8. Nf3 {[%clk
01:32:42]} {[%emt 00:00:09]} Nxd5 {[%clk 01:06:28]} {[%emt 00:26:55]} 9. Nxe5
{[%clk 01:33:05]} {[%emt 00:00:07]} Bxb5 {[%clk 01:06:44]} {[%emt 00:00:14]} 10.
Qxb5+ {[%clk 01:33:15]} {[%emt 00:00:22]} c6 {[%clk 01:07:09]} {[%emt
00:00:03]} 11. Qd3 {[%clk 01:31:49]} {[%emt 00:01:55]} Bd6 {[%clk 01:00:31]}
{[%emt 00:07:09]} 12. Nc4 {[%clk 01:10:21]} {[%emt 00:22:01]} Qe7+ {[%clk
00:52:29]} {[%emt 00:08:29]} 13. Ne3 {[%clk 01:10:39]} {[%emt 00:00:12]} Nf4
{[%clk 00:48:36]} {[%emt 00:04:24]} 14. Qc3 {[%clk 01:08:47]} {[%emt 00:02:22]}
Nxg2+ {[%clk 00:48:12]} {[%emt 00:00:54]} 15. Kf1 {[%clk 01:08:44]} {[%emt
00:00:33]} Nxe3+ {[%clk 00:47:58]} {[%emt 00:00:44]} 16. Qxe3 {[%clk 01:08:02]}
{[%emt 00:01:12]} Nc4 {[%clk 00:45:37]} {[%emt 00:02:51]} 17. Qxe7+ {[%clk
01:08:18]} {[%emt 00:00:14]} Kxe7 {[%clk 00:41:55]} {[%emt 00:04:12]} 18. d3
{[%clk 01:08:34]} {[%emt 00:00:13]} Nb6 {[%clk 00:39:54]} {[%emt 00:02:32]} 19.
Nc3 {[%clk 01:07:40]} {[%emt 00:01:24]} Be5 {[%clk 00:31:19]} {[%emt 00:09:04]}
20. Bd2 {[%clk 01:05:51]} {[%emt 00:02:20]} f6 {[%clk 00:29:44]} {[%emt
00:02:06]} 21. Re1 {[%clk 01:05:15]} {[%emt 00:01:02]} Kf7 {[%clk 00:29:38]}
{[%emt 00:00:40]} 22. Ne4 {[%clk 01:00:35]} {[%emt 00:05:09]} Rhe8 {[%clk
00:13:03]} {[%emt 00:17:05]} 23. d4 {[%clk 00:57:56]} {[%emt 00:03:09]} Bc7
{[%clk 00:13:18]} {[%emt 00:00:16]} 24. Kg2 {[%clk 00:56:26]} {[%emt 00:02:00]}
Rad8 {[%clk 00:10:13]} {[%emt 00:03:35]} 25. c3 {[%clk 00:53:59]} {[%emt
00:02:56]} Nc4 {[%clk 00:09:07]} {[%emt 00:01:35]} 26. Bc1 {[%clk 00:54:19]}
{[%emt 00:00:09]} b6 {[%clk 00:08:40]} {[%emt 00:00:58]} 27. b3 {[%clk
00:54:29]} {[%emt 00:00:20]} Nd6 {[%clk 00:09:03]} {[%emt 00:00:07]} 28. Ng3
{[%clk 00:52:44]} {[%emt 00:02:13]} g6 {[%clk 00:08:02]} {[%emt 00:01:32]} 29.
Bf4 {[%clk 00:46:26]} {[%emt 00:06:48]} Nb5 {[%clk 00:07:23]} {[%emt 00:01:09]}
30. Bxc7 {[%clk 00:46:37]} {[%emt 00:00:19]} Nxc7 {[%clk 00:07:51]} {[%emt
00:00:02]} 31. Re3 {[%clk 00:46:44]} {[%emt 00:00:23]} Nd5 {[%clk 00:06:49]}
{[%emt 00:01:32]} 32. Rxe8 {[%clk 00:45:56]} Rxe8 {[%clk 00:07:11]} {[%emt
00:01:26]} 33. c4 {[%clk 00:44:56]} {[%emt 00:01:30]} Nb4 {[%clk 00:03:09]}
{[%emt 00:04:32]} 34. Kf3 {[%clk 00:44:40]} {[%emt 00:00:45]} Re7 {[%clk
00:02:49]} {[%emt 00:00:52]} 35. Ra1 {[%clk 00:43:28]} {[%emt 00:01:43]} Nc2
{[%clk 00:02:07]} {[%emt 00:01:11]} 36. Rd1 {[%clk 00:43:40]} {[%emt 00:00:16]}
f5 {[%clk 00:02:16]} {[%emt 00:00:23]} 37. d5 {[%clk 00:37:42]} {[%emt
00:06:29]} Ne1+ {[%clk 00:02:20]} {[%emt 00:00:26]} 38. Kf4 {[%clk 00:38:02]}
{[%emt 00:00:09]} Ng2+ {[%clk 00:02:34]} {[%emt 00:00:16]} 39. Kf3 {[%clk
00:38:19]} {[%emt 00:00:13]} Nh4+ {[%clk 00:02:52]} {[%emt 00:00:12]} 40. Kf4
{[%clk 00:38:38]} {[%emt 00:00:11]} Kf6 {[%clk 00:02:41]} {[%emt 00:00:42]} 41.
Nf1 {[%clk 00:36:35]} {[%emt 00:02:33]} Re4+ {[%clk 00:02:05]} {[%emt
00:01:06]} 42. Kg3 {[%clk 00:36:59]} {[%emt 00:00:05]} Rg4+ {[%clk 00:02:08]}
{[%emt 00:00:27]} 43. Kh3 {[%clk 00:37:18]} {[%emt 00:00:11]} Ng2 {[%clk
00:00:42]} {[%emt 00:01:56]} 44. Ng3 {[%clk 00:36:52]} {[%emt 00:00:57]} Nf4#
{[%clk 00:00:58]} {[%emt 00:00:12]} 0-1